[Event "Titled Tuesday Blitz November 15 Early 2022"]
[White "Kopylov, Alexander A."]
[Black "Fieberg, Samuel"]
[WhiteFideId "4164857"]
[BlackFideId "12901717"]
[WhiteElo "2436"]
[BlackElo "2510"]
[Result "1-0"]
[Round "05"]
[TimeControl "180+1"]
[Date "2022.11.16"]
[WhiteClock "0:00:13"]
[BlackClock "0:00:05"]

1. e4 {[%clk 0:03:00]}  e6 {[%clk 0:02:57]} 2. Nf3 {[%clk 0:03:00]}  d5 {[%clk 0:02:58]} 3. exd5 {[%clk 0:03:01]}  exd5 {[%clk 0:02:58]} 4. d4 {[%clk 0:03:02]}  Nc6 {[%clk 0:02:58]} 5. Bd3 {[%clk 0:03:02]}  Bd6 {[%clk 0:02:56]} 6. O-O {[%clk 0:03:02]}  Nge7 {[%clk 0:02:57]} 7. c3 {[%clk 0:03:02]}  Bf5 {[%clk 0:02:57]} 8. Re1 {[%clk 0:03:00]}  O-O {[%clk 0:02:54]} 9. b4 {[%clk 0:02:57]}  a6 {[%clk 0:02:46]} 10. Qc2 {[%clk 0:02:54]}  Qd7 {[%clk 0:02:36]} 11. Nbd2 {[%clk 0:02:53]}  Bxd3 {[%clk 0:02:34]} 12. Qxd3 {[%clk 0:02:53]}  Qf5 {[%clk 0:02:34]} 13. Qxf5 {[%clk 0:02:49]}  Nxf5 {[%clk 0:02:35]} 14. Nb3 {[%clk 0:02:50]}  b6 {[%clk 0:02:26]} 15. a4 {[%clk 0:02:49]}  a5 {[%clk 0:02:19]} 16. b5 {[%clk 0:02:47]}  Nd8 {[%clk 0:02:13]} 17. g4 {[%clk 0:02:46]}  Ne7 {[%clk 0:02:07]} 18. Ne5 {[%clk 0:02:46]}  f6 {[%clk 0:01:57]} 19. Nd3 {[%clk 0:02:46]}  Nf7 {[%clk 0:01:50]} 20. Bf4 {[%clk 0:02:29]}  Rfe8 {[%clk 0:01:48]} 21. Nd2 {[%clk 0:02:18]}  Ng6 {[%clk 0:01:41]} 22. Bg3 {[%clk 0:02:16]}  Bxg3 {[%clk 0:01:37]} 23. hxg3 {[%clk 0:02:16]}  Nd6 {[%clk 0:01:34]} 24. Kg2 {[%clk 0:02:13]}  Kf7 {[%clk 0:01:30]} 25. f4 {[%clk 0:02:08]}  Rxe1 {[%clk 0:01:29]} 26. Rxe1 {[%clk 0:02:07]}  Re8 {[%clk 0:01:30]} 27. Rxe8 {[%clk 0:02:07]}  Kxe8 {[%clk 0:01:30]} 28. f5 {[%clk 0:02:07]}  Ne7 {[%clk 0:01:25]} 29. Nf4 {[%clk 0:02:07]}  Kd7 {[%clk 0:01:22]} 30. Nh5 {[%clk 0:01:41]}  Ne8 {[%clk 0:01:19]} 31. Kf3 {[%clk 0:01:25]}  g6 {[%clk 0:01:17]} 32. Nf4 {[%clk 0:01:16]}  Nd6 {[%clk 0:01:14]} 33. fxg6 {[%clk 0:01:03]}  hxg6 {[%clk 0:01:15]} 34. Nh3 {[%clk 0:00:57]}  g5 {[%clk 0:01:12]} 35. Ke3 {[%clk 0:00:50]}  c6 {[%clk 0:01:10]} 36. bxc6+ {[%clk 0:00:49]}  Kxc6 {[%clk 0:01:11]} 37. Kd3 {[%clk 0:00:42]}  b5 {[%clk 0:01:10]} 38. axb5+ {[%clk 0:00:42]}  Kxb5 {[%clk 0:01:11]} 39. Nf2 {[%clk 0:00:39]}  a4 {[%clk 0:01:05]} 40. Kc2 {[%clk 0:00:39]}  Nc6 {[%clk 0:00:57]} 41. Nd3 {[%clk 0:00:39]}  Ne4 {[%clk 0:00:47]} 42. Nf1 {[%clk 0:00:22]}  Na5 {[%clk 0:00:36]} 43. Ne3 {[%clk 0:00:22]}  a3 {[%clk 0:00:25]} 44. Nc1 {[%clk 0:00:22]}  Kc6 {[%clk 0:00:21]} 45. Na2 {[%clk 0:00:22]}  Nc4 {[%clk 0:00:16]} 46. Nb4+ {[%clk 0:00:22]}  Kd6 {[%clk 0:00:16]} 47. Nbxd5 {[%clk 0:00:18]}  a2 {[%clk 0:00:15]} 48. Nxc4+ {[%clk 0:00:12]}  Kxd5 {[%clk 0:00:15]} 49. Ne3+ {[%clk 0:00:13]}  Kd6 {[%clk 0:00:13]} 50. Kb2 {[%clk 0:00:13]}  Nxc3 {[%clk 0:00:14]} 51. Nc2 {[%clk 0:00:10]}  Ne2 {[%clk 0:00:14]} 52. Kxa2 {[%clk 0:00:10]}  Nxg3 {[%clk 0:00:15]} 53. Kb3 {[%clk 0:00:11]}  Kd5 {[%clk 0:00:15]} 54. Kc3 {[%clk 0:00:11]}  Ne2+ {[%clk 0:00:16]} 55. Kd3 {[%clk 0:00:11]}  Nf4+ {[%clk 0:00:16]} 56. Ke3 {[%clk 0:00:12]}  Ng2+ {[%clk 0:00:15]} 57. Kd3 {[%clk 0:00:12]}  Nf4+ {[%clk 0:00:15]} 58. Ke3 {[%clk 0:00:13]}  Ne6 {[%clk 0:00:11]} 59. Kd3 {[%clk 0:00:12]}  Nf8 {[%clk 0:00:10]} 60. Ne3+ {[%clk 0:00:12]}  Ke6 {[%clk 0:00:10]} 61. Ke4 {[%clk 0:00:13]}  Ng6 {[%clk 0:00:09]} 62. d5+ {[%clk 0:00:13]}  Kd7 {[%clk 0:00:10]} 63. Kf5 {[%clk 0:00:13]}  Nh4+ {[%clk 0:00:07]} 64. Kxf6 {[%clk 0:00:13]}  Nf3 {[%clk 0:00:08]} 65. Nf5 {[%clk 0:00:12]}  Nh2 {[%clk 0:00:05]} 66. Kxg5 {[%clk 0:00:12]}  Nf3+ {[%clk 0:00:05]} 67. Kf4 {[%clk 0:00:12]}  Nh2 {[%clk 0:00:05]} 68. g5 {[%clk 0:00:12]}  Ke8 {[%clk 0:00:05]} 69. d6 {[%clk 0:00:12]}  Kd7 {[%clk 0:00:05]} 70. g6 {[%clk 0:00:13]} 1-0


[Site "https://www.chess.com"]

[Event "Titled Tuesday Blitz November 15 Early 2022"]
[White "Kosakowski, Jakub"]
[Black "Ginzburg, Yakov"]
[WhiteFideId "1185080"]
[BlackFideId "4157176"]
[WhiteElo "2463"]
[BlackElo "2305"]
[Result "0-1"]
[Round "05"]
[TimeControl "180+1"]
[Date "2022.11.16"]
[WhiteClock "0:00:02"]
[BlackClock "0:00:06"]

1. e4 {[%clk 0:02:59]}  c5 {[%clk 0:02:41]} 2. Nf3 {[%clk 0:02:58]}  e6 {[%clk 0:02:41]} 3. c3 {[%clk 0:02:55]}  d5 {[%clk 0:02:41]} 4. exd5 {[%clk 0:02:55]}  exd5 {[%clk 0:02:42]} 5. d4 {[%clk 0:02:56]}  Nf6 {[%clk 0:02:42]} 6. Bb5+ {[%clk 0:02:53]}  Bd7 {[%clk 0:02:42]} 7. Bxd7+ {[%clk 0:02:53]}  Nbxd7 {[%clk 0:02:43]} 8. O-O {[%clk 0:02:52]}  Be7 {[%clk 0:02:43]} 9. dxc5 {[%clk 0:02:51]}  Nxc5 {[%clk 0:02:43]} 10. Be3 {[%clk 0:02:51]}  O-O {[%clk 0:02:42]} 11. Nbd2 {[%clk 0:02:51]}  Nce4 {[%clk 0:02:41]} 12. Nb3 {[%clk 0:02:50]}  Ng4 {[%clk 0:02:31]} 13. Bf4 {[%clk 0:02:48]}  Qb6 {[%clk 0:02:17]} 14. Nfd4 {[%clk 0:01:59]}  Ngxf2 {[%clk 0:01:32]} 15. Rxf2 {[%clk 0:01:55]}  Nxf2 {[%clk 0:01:32]} 16. Kxf2 {[%clk 0:01:56]}  a5 {[%clk 0:01:31]} 17. Qe2 {[%clk 0:01:25]}  Bf6 {[%clk 0:01:23]} 18. Qb5 {[%clk 0:01:21]}  Qxb5 {[%clk 0:01:14]} 19. Nxb5 {[%clk 0:01:20]}  a4 {[%clk 0:01:15]} 20. N3d4 {[%clk 0:01:18]}  Bxd4+ {[%clk 0:01:05]} 21. Nxd4 {[%clk 0:01:17]}  a3 {[%clk 0:01:02]} 22. b3 {[%clk 0:01:14]}  Rfc8 {[%clk 0:00:58]} 23. Rc1 {[%clk 0:01:11]}  Ra6 {[%clk 0:00:46]} 24. Ke2 {[%clk 0:01:08]}  Rf6 {[%clk 0:00:41]} 25. Bg3 {[%clk 0:01:06]}  h5 {[%clk 0:00:37]} 26. Kd3 {[%clk 0:01:04]}  Rg6 {[%clk 0:00:34]} 27. Rc2 {[%clk 0:00:58]}  Rg4 {[%clk 0:00:30]} 28. Nf5 {[%clk 0:00:49]}  Re8 {[%clk 0:00:24]} 29. Re2 {[%clk 0:00:48]}  Rge4 {[%clk 0:00:20]} 30. Rxe4 {[%clk 0:00:44]}  dxe4+ {[%clk 0:00:20]} 31. Ke3 {[%clk 0:00:44]}  g6 {[%clk 0:00:20]} 32. Nd6 {[%clk 0:00:43]}  Re7 {[%clk 0:00:21]} 33. Bh4 {[%clk 0:00:30]}  Re6 {[%clk 0:00:21]} 34. Nxb7 {[%clk 0:00:30]}  f5 {[%clk 0:00:21]} 35. c4 {[%clk 0:00:27]}  Rb6 {[%clk 0:00:19]} 36. Nc5 {[%clk 0:00:26]}  Kf7 {[%clk 0:00:18]} 37. Nd7 {[%clk 0:00:26]}  Rd6 {[%clk 0:00:18]} 38. Ne5+ {[%clk 0:00:24]}  Ke6 {[%clk 0:00:15]} 39. c5 {[%clk 0:00:16]}  Rd1 {[%clk 0:00:13]} 40. Nxg6 {[%clk 0:00:16]}  Rd3+ {[%clk 0:00:12]} 41. Ke2 {[%clk 0:00:16]}  Rxb3 {[%clk 0:00:12]} 42. Nf4+ {[%clk 0:00:13]}  Kf7 {[%clk 0:00:12]} 43. c6 {[%clk 0:00:09]}  Rc3 {[%clk 0:00:12]} 44. Nd5 {[%clk 0:00:06]}  Rxc6 {[%clk 0:00:11]} 45. Ne3 {[%clk 0:00:06]}  Ke6 {[%clk 0:00:10]} 46. Bg3 {[%clk 0:00:05]}  Rb6 {[%clk 0:00:10]} 47. Nc4 {[%clk 0:00:05]}  Rb2+ {[%clk 0:00:10]} 48. Ke3 {[%clk 0:00:05]}  Rxa2 {[%clk 0:00:10]} 49. Kf4 {[%clk 0:00:04]}  Ra1 {[%clk 0:00:07]} 50. Na5 {[%clk 0:00:01]}  a2 {[%clk 0:00:07]} 51. Nb3 {[%clk 0:00:02]}  Rb1 {[%clk 0:00:07]} 52. Nd4+ {[%clk 0:00:02]}  Kd5 {[%clk 0:00:06]} 53. Nc2 {[%clk 0:00:02]}  Rb2 {[%clk 0:00:05]} 54. Ne3+ {[%clk 0:00:02]}  Ke6 {[%clk 0:00:06]} 55. Nxf5 {[%clk 0:00:02]}  a1=Q {[%clk 0:00:06]} 56. Ne3 {[%clk 0:00:02]}  Qc1 {[%clk 0:00:05]} 57. Kxe4 {[%clk 0:00:02]}  Rb4+ {[%clk 0:00:05]} 58. Kf3 {[%clk 0:00:03]}  Rb3 {[%clk 0:00:05]} 59. Bf4 {[%clk 0:00:03]}  Rxe3+ {[%clk 0:00:05]} 60. Bxe3 {[%clk 0:00:04]}  Qf1+ {[%clk 0:00:06]} 61. Kg3 {[%clk 0:00:04]}  Kf5 {[%clk 0:00:06]} 62. h3 {[%clk 0:00:04]}  h4+ {[%clk 0:00:07]} 63. Kh2 {[%clk 0:00:03]}  Qe2 {[%clk 0:00:07]} 64. Ba7 {[%clk 0:00:03]}  Qe5+ {[%clk 0:00:07]} 65. Kh1 {[%clk 0:00:03]}  Qa1+ {[%clk 0:00:07]} 66. Bg1 {[%clk 0:00:03]}  Kf4 {[%clk 0:00:07]} 67. Kh2 {[%clk 0:00:03]}  Qb1 {[%clk 0:00:07]} 68. Kh1 {[%clk 0:00:03]}  Ke4 {[%clk 0:00:07]} 69. Kh2 {[%clk 0:00:03]}  Qf1 {[%clk 0:00:07]} 70. Kh1 {[%clk 0:00:03]}  Kd3 {[%clk 0:00:07]} 71. Kh2 {[%clk 0:00:03]}  Ke2 {[%clk 0:00:07]} 72. Ba7 {[%clk 0:00:04]}  Qf4+ {[%clk 0:00:07]} 73. Kg1 {[%clk 0:00:04]}  Qc1+ {[%clk 0:00:06]} 74. Kh2 {[%clk 0:00:03]}  Qc7+ {[%clk 0:00:06]} 75. Kh1 {[%clk 0:00:02]}  Qxa7 {[%clk 0:00:06]} 0-1


[Site "https://www.chess.com"]

[Event "Titled Tuesday Blitz November 15 Early 2022"]
[White "Kovalev, Vladislav"]
[Black "Deac, Bogdan-Daniel"]
[WhiteFideId "13504398"]
[BlackFideId "1226380"]
[WhiteElo "2556"]
[BlackElo "2648"]
[Result "0-1"]
[Round "05"]
[TimeControl "180+1"]
[Date "2022.11.15"]
[WhiteClock "0:00:04"]
[BlackClock "0:00:38"]

1. e4 {[%clk 0:02:57]}  c6 {[%clk 0:03:00]} 2. Nf3 {[%clk 0:02:56]}  d5 {[%clk 0:03:01]} 3. d3 {[%clk 0:02:57]}  Qc7 {[%clk 0:03:01]} 4. Nc3 {[%clk 0:02:56]}  dxe4 {[%clk 0:03:00]} 5. dxe4 {[%clk 0:02:55]}  e5 {[%clk 0:03:00]} 6. Bc4 {[%clk 0:02:42]}  h6 {[%clk 0:02:59]} 7. a4 {[%clk 0:02:42]}  Nf6 {[%clk 0:02:59]} 8. O-O {[%clk 0:02:42]}  Bb4 {[%clk 0:02:58]} 9. Qe2 {[%clk 0:02:21]}  O-O {[%clk 0:02:49]} 10. h3 {[%clk 0:01:52]}  Re8 {[%clk 0:02:47]} 11. Bd2 {[%clk 0:01:14]}  a5 {[%clk 0:02:40]} 12. Nd1 {[%clk 0:01:08]}  Be6 {[%clk 0:02:27]} 13. Bxe6 {[%clk 0:01:08]}  Rxe6 {[%clk 0:02:27]} 14. Bxb4 {[%clk 0:01:03]}  axb4 {[%clk 0:02:27]} 15. b3 {[%clk 0:01:01]}  Nbd7 {[%clk 0:02:26]} 16. Nb2 {[%clk 0:01:01]}  Nc5 {[%clk 0:02:24]} 17. Nd2 {[%clk 0:00:55]}  Rd8 {[%clk 0:02:23]} 18. Rfd1 {[%clk 0:00:51]}  Red6 {[%clk 0:02:14]} 19. Nbc4 {[%clk 0:00:48]}  Rd4 {[%clk 0:02:05]} 20. Nf3 {[%clk 0:00:16]}  Rxe4 {[%clk 0:02:04]} 21. Rxd8+ {[%clk 0:00:16]}  Qxd8 {[%clk 0:02:04]} 22. Qd2 {[%clk 0:00:06]}  Nd5 {[%clk 0:00:41]} 23. Ncxe5 {[%clk 0:00:04]}  Qf6 {[%clk 0:00:39]} 24. Nd3 {[%clk 0:00:04]}  Qxa1+ {[%clk 0:00:38]} 0-1


[Site "https://www.chess.com"]

[Event "Titled Tuesday Blitz November 15 Early 2022"]
[White "Krallis, Christos"]
[Black "Thiel, Thomas"]
[WhiteFideId "4298896"]
[BlackFideId "4615964"]
[WhiteElo "2243"]
[BlackElo "2240"]
[Result "1/2-1/2"]
[Round "05"]
[TimeControl "180+1"]
[Date "2022.11.16"]
[WhiteClock "0:01:15"]
[BlackClock "0:01:15"]

1. d4 {[%clk 0:03:00]}  Nf6 {[%clk 0:02:56]} 2. Nf3 {[%clk 0:03:01]}  g6 {[%clk 0:02:55]} 3. g3 {[%clk 0:03:00]}  Bg7 {[%clk 0:02:53]} 4. Bg2 {[%clk 0:02:59]}  d5 {[%clk 0:02:53]} 5. O-O {[%clk 0:03:00]}  O-O {[%clk 0:02:52]} 6. Nc3 {[%clk 0:02:58]}  Bf5 {[%clk 0:02:49]} 7. Bf4 {[%clk 0:02:58]}  c6 {[%clk 0:02:48]} 8. Ne5 {[%clk 0:02:57]}  Ne4 {[%clk 0:02:48]} 9. Nxe4 {[%clk 0:02:57]}  Bxe4 {[%clk 0:02:48]} 10. c3 {[%clk 0:02:51]}  Bxg2 {[%clk 0:02:47]} 11. Kxg2 {[%clk 0:02:51]}  Nd7 {[%clk 0:02:46]} 12. Nd3 {[%clk 0:02:49]}  Re8 {[%clk 0:02:44]} 13. Bg5 {[%clk 0:02:46]}  Qb6 {[%clk 0:02:42]} 14. Qb3 {[%clk 0:02:43]}  e5 {[%clk 0:02:41]} 15. dxe5 {[%clk 0:02:34]}  Nxe5 {[%clk 0:02:41]} 16. Nxe5 {[%clk 0:02:32]}  Rxe5 {[%clk 0:02:38]} 17. Be3 {[%clk 0:02:30]}  Qxb3 {[%clk 0:02:32]} 18. axb3 {[%clk 0:02:27]}  a6 {[%clk 0:02:32]} 19. b4 {[%clk 0:02:24]}  Rae8 {[%clk 0:02:32]} 20. Rad1 {[%clk 0:02:17]}  Re4 {[%clk 0:02:29]} 21. Rfe1 {[%clk 0:02:15]}  d4 {[%clk 0:02:12]} 22. Bxd4 {[%clk 0:01:58]}  Rxe2 {[%clk 0:02:10]} 23. Rxe2 {[%clk 0:01:55]}  Rxe2 {[%clk 0:02:10]} 24. Bxg7 {[%clk 0:01:54]}  Kxg7 {[%clk 0:02:09]} 25. Rd7 {[%clk 0:01:54]}  Rxb2 {[%clk 0:01:55]} 26. Rxb7 {[%clk 0:01:54]}  c5 {[%clk 0:01:55]} 27. Rb6 {[%clk 0:01:48]}  cxb4 {[%clk 0:01:54]} 28. cxb4 {[%clk 0:01:48]}  Rb3 {[%clk 0:01:54]} 29. g4 {[%clk 0:01:42]}  Ra3 {[%clk 0:01:50]} 30. g5 {[%clk 0:01:40]}  a5 {[%clk 0:01:47]} 31. b5 {[%clk 0:01:40]}  Rb3 {[%clk 0:01:47]} 32. h4 {[%clk 0:01:37]}  a4 {[%clk 0:01:46]} 33. Ra6 {[%clk 0:01:36]}  Rxb5 {[%clk 0:01:46]} 34. Rxa4 {[%clk 0:01:37]}  h6 {[%clk 0:01:46]} 35. Rg4 {[%clk 0:01:30]}  hxg5 {[%clk 0:01:44]} 36. hxg5 {[%clk 0:01:29]}  Rb3 {[%clk 0:01:43]} 37. f3 {[%clk 0:01:27]}  Rb1 {[%clk 0:01:41]} 38. Ra4 {[%clk 0:01:25]}  Rb7 {[%clk 0:01:38]} 39. Kg3 {[%clk 0:01:25]}  f6 {[%clk 0:01:37]} 40. Kg4 {[%clk 0:01:21]}  fxg5 {[%clk 0:01:35]} 41. Kxg5 {[%clk 0:01:21]}  Rb5+ {[%clk 0:01:34]} 42. Kg4 {[%clk 0:01:21]}  Kf6 {[%clk 0:01:34]} 43. Ra6+ {[%clk 0:01:20]}  Kf7 {[%clk 0:01:33]} 44. f4 {[%clk 0:01:21]}  Rc5 {[%clk 0:01:31]} 45. Ra8 {[%clk 0:01:20]}  Rb5 {[%clk 0:01:29]} 46. Kf3 {[%clk 0:01:20]}  Rc5 {[%clk 0:01:29]} 47. Ke4 {[%clk 0:01:20]}  Rc1 {[%clk 0:01:28]} 48. Ra7+ {[%clk 0:01:20]}  Kf6 {[%clk 0:01:27]} 49. Ra6+ {[%clk 0:01:20]}  Kf7 {[%clk 0:01:26]} 50. Ke5 {[%clk 0:01:18]}  Re1+ {[%clk 0:01:24]} 51. Kd5 {[%clk 0:01:18]}  Rd1+ {[%clk 0:01:24]} 52. Ke4 {[%clk 0:01:19]}  Re1+ {[%clk 0:01:24]} 53. Kf3 {[%clk 0:01:18]}  Rf1+ {[%clk 0:01:23]} 54. Kg3 {[%clk 0:01:18]}  Rg1+ {[%clk 0:01:23]} 55. Kf2 {[%clk 0:01:18]}  Rb1 {[%clk 0:01:22]} 56. Ra4 {[%clk 0:01:18]}  Rb3 {[%clk 0:01:21]} 57. Ra6 {[%clk 0:01:16]}  Kg7 {[%clk 0:01:21]} 58. Rd6 {[%clk 0:01:16]}  Kf7 {[%clk 0:01:21]} 59. Rd4 {[%clk 0:01:15]}  Kf6 {[%clk 0:01:20]} 60. Re4 {[%clk 0:01:14]}  Kf5 {[%clk 0:01:19]} 61. Ra4 {[%clk 0:01:15]}  g5 {[%clk 0:01:15]} 1/2-1/2


[Site "https://www.chess.com"]

[Event "Titled Tuesday Blitz November 15 Early 2022"]
[White "Matinian, Nikita"]
[Black "Jaskolka, Tomasz"]
[WhiteFideId "24129100"]
[BlackFideId "1170791"]
[WhiteElo "2422"]
[BlackElo "2126"]
[Result "0-1"]
[Round "05"]
[TimeControl "180+1"]
[Date "2022.11.16"]
[WhiteClock "0:00:03"]
[BlackClock "0:00:12"]

1. e4 {[%clk 0:03:00]}  Nf6 {[%clk 0:02:56]} 2. e5 {[%clk 0:02:58]}  Nd5 {[%clk 0:02:57]} 3. d4 {[%clk 0:02:59]}  d6 {[%clk 0:02:57]} 4. Nf3 {[%clk 0:02:59]}  dxe5 {[%clk 0:02:56]} 5. Nxe5 {[%clk 0:03:00]}  Bf5 {[%clk 0:02:54]} 6. Bc4 {[%clk 0:03:00]}  c6 {[%clk 0:02:54]} 7. O-O {[%clk 0:02:59]}  e6 {[%clk 0:02:54]} 8. Bb3 {[%clk 0:03:00]}  Nd7 {[%clk 0:02:54]} 9. c4 {[%clk 0:03:00]}  N5b6 {[%clk 0:02:53]} 10. Bf4 {[%clk 0:02:51]}  Be7 {[%clk 0:02:52]} 11. Nc3 {[%clk 0:02:41]}  O-O {[%clk 0:02:52]} 12. Qf3 {[%clk 0:02:24]}  Bf6 {[%clk 0:02:41]} 13. Rad1 {[%clk 0:02:21]}  Qe7 {[%clk 0:02:37]} 14. g4 {[%clk 0:01:54]}  Bg6 {[%clk 0:02:33]} 15. Rfe1 {[%clk 0:01:49]}  Qb4 {[%clk 0:02:00]} 16. c5 {[%clk 0:01:40]}  Bxe5 {[%clk 0:01:47]} 17. Bxe5 {[%clk 0:01:35]}  Nxe5 {[%clk 0:01:41]} 18. Rxe5 {[%clk 0:01:36]}  Nd5 {[%clk 0:01:41]} 19. h4 {[%clk 0:01:26]}  h6 {[%clk 0:01:34]} 20. h5 {[%clk 0:01:26]}  Bh7 {[%clk 0:01:34]} 21. g5 {[%clk 0:01:26]}  hxg5 {[%clk 0:01:32]} 22. Rxg5 {[%clk 0:01:27]}  Kh8 {[%clk 0:01:22]} 23. h6 {[%clk 0:01:23]}  Bg6 {[%clk 0:01:05]} 24. Rg3 {[%clk 0:01:01]}  Rad8 {[%clk 0:00:59]} 25. Kg2 {[%clk 0:00:59]}  gxh6 {[%clk 0:00:51]} 26. Rh1 {[%clk 0:00:58]}  Kg7 {[%clk 0:00:49]} 27. Bc4 {[%clk 0:00:55]}  Qxc4 {[%clk 0:00:43]} 28. Qe4 {[%clk 0:00:48]}  Nxc3 {[%clk 0:00:33]} 29. Qe5+ {[%clk 0:00:40]}  Kg8 {[%clk 0:00:24]} 30. bxc3 {[%clk 0:00:15]}  Qd5+ {[%clk 0:00:24]} 31. Qxd5 {[%clk 0:00:16]}  Rxd5 {[%clk 0:00:25]} 32. Rxh6 {[%clk 0:00:16]}  Kg7 {[%clk 0:00:25]} 33. Rh1 {[%clk 0:00:16]}  Rh8 {[%clk 0:00:24]} 34. Rb1 {[%clk 0:00:15]}  Rb8 {[%clk 0:00:12]} 35. a4 {[%clk 0:00:15]}  Kf6 {[%clk 0:00:12]} 36. Rb2 {[%clk 0:00:14]}  a6 {[%clk 0:00:12]} 37. f4 {[%clk 0:00:14]}  Rf5 {[%clk 0:00:12]} 38. Kf3 {[%clk 0:00:14]}  Bh5+ {[%clk 0:00:13]} 39. Ke3 {[%clk 0:00:14]}  Bg6 {[%clk 0:00:13]} 40. Rh3 {[%clk 0:00:13]}  Ke7 {[%clk 0:00:12]} 41. Rb6 {[%clk 0:00:13]}  Rh5 {[%clk 0:00:10]} 42. Rg3 {[%clk 0:00:12]}  Rh1 {[%clk 0:00:11]} 43. Rg2 {[%clk 0:00:10]}  Rb1 {[%clk 0:00:11]} 44. a5 {[%clk 0:00:06]}  Rxb6 {[%clk 0:00:11]} 45. cxb6 {[%clk 0:00:07]}  Kd6 {[%clk 0:00:11]} 46. Rh2 {[%clk 0:00:06]}  Kd5 {[%clk 0:00:10]} 47. Rb2 {[%clk 0:00:03]}  Kc4 {[%clk 0:00:10]} 48. Kd2 {[%clk 0:00:03]}  Rh8 {[%clk 0:00:10]} 49. Rb4+ {[%clk 0:00:03]}  Kd5 {[%clk 0:00:10]} 50. Ke3 {[%clk 0:00:02]}  Rh3+ {[%clk 0:00:11]} 51. Kd2 {[%clk 0:00:03]}  Rd3+ {[%clk 0:00:11]} 52. Ke2 {[%clk 0:00:03]}  Rxc3 {[%clk 0:00:12]} 0-1


[Site "https://www.chess.com"]

[Event "Titled Tuesday Blitz November 15 Early 2022"]
[White "Mejia, Cherry Ann"]
[Black "Aldokhin, Ivan"]
[WhiteFideId "5206880"]
[BlackFideId "24115720"]
[WhiteElo "2007"]
[BlackElo "2313"]
[Result "0-1"]
[Round "05"]
[TimeControl "180+1"]
[Date "2022.11.16"]
[WhiteClock "0:00:01"]
[BlackClock "0:00:02"]

1. e4 {[%clk 0:02:57]}  c5 {[%clk 0:02:58]} 2. Nc3 {[%clk 0:02:56]}  g6 {[%clk 0:02:56]} 3. g3 {[%clk 0:02:56]}  Bg7 {[%clk 0:02:55]} 4. d3 {[%clk 0:02:55]}  Nc6 {[%clk 0:02:54]} 5. Be3 {[%clk 0:02:55]}  d6 {[%clk 0:02:54]} 6. Qd2 {[%clk 0:02:56]}  f5 {[%clk 0:02:53]} 7. Bg2 {[%clk 0:02:54]}  Nf6 {[%clk 0:02:49]} 8. h3 {[%clk 0:02:54]}  O-O {[%clk 0:02:47]} 9. Nge2 {[%clk 0:02:51]}  e5 {[%clk 0:02:45]} 10. O-O {[%clk 0:02:48]}  f4 {[%clk 0:02:40]} 11. gxf4 {[%clk 0:02:48]}  Nh5 {[%clk 0:02:39]} 12. f5 {[%clk 0:02:44]}  gxf5 {[%clk 0:02:32]} 13. f4 {[%clk 0:02:44]}  Nd4 {[%clk 0:02:28]} 14. Bxd4 {[%clk 0:02:23]}  cxd4 {[%clk 0:02:21]} 15. Nd5 {[%clk 0:02:23]}  Qh4 {[%clk 0:02:01]} 16. Qe1 {[%clk 0:02:11]}  Qd8 {[%clk 0:01:42]} 17. Ng3 {[%clk 0:02:10]}  Nxf4 {[%clk 0:01:33]} 18. Nxf4 {[%clk 0:02:10]}  exf4 {[%clk 0:01:32]} 19. Rxf4 {[%clk 0:02:10]}  Be5 {[%clk 0:01:29]} 20. Rf1 {[%clk 0:01:53]}  f4 {[%clk 0:01:28]} 21. Ne2 {[%clk 0:01:24]}  Qg5 {[%clk 0:01:21]} 22. Rf3 {[%clk 0:01:22]}  Be6 {[%clk 0:01:06]} 23. Qf2 {[%clk 0:01:21]}  Rf6 {[%clk 0:00:59]} 24. Rf1 {[%clk 0:01:10]}  Raf8 {[%clk 0:00:57]} 25. Nxd4 {[%clk 0:01:03]}  Bd7 {[%clk 0:00:32]} 26. Ne2 {[%clk 0:01:01]}  Rg6 {[%clk 0:00:25]} 27. d4 {[%clk 0:00:59]}  Bg7 {[%clk 0:00:25]} 28. c3 {[%clk 0:00:33]}  Bb5 {[%clk 0:00:24]} 29. Kh2 {[%clk 0:00:27]}  Bh6 {[%clk 0:00:23]} 30. Rg1 {[%clk 0:00:20]}  Qf6 {[%clk 0:00:10]} 31. Rf1 {[%clk 0:00:15]}  Bg5 {[%clk 0:00:10]} 32. Rg1 {[%clk 0:00:15]}  Bh4 {[%clk 0:00:10]} 33. Qf1 {[%clk 0:00:15]}  Bg5 {[%clk 0:00:08]} 34. Qf2 {[%clk 0:00:14]}  Qe7 {[%clk 0:00:08]} 35. Bf1 {[%clk 0:00:11]}  Qxe4 {[%clk 0:00:06]} 36. h4 {[%clk 0:00:11]}  Bh6 {[%clk 0:00:05]} 37. Rxg6+ {[%clk 0:00:11]}  hxg6 {[%clk 0:00:05]} 38. Ng1 {[%clk 0:00:11]}  Bc6 {[%clk 0:00:04]} 39. Bg2 {[%clk 0:00:10]}  Qf5 {[%clk 0:00:04]} 40. Rh3 {[%clk 0:00:10]}  Qf6 {[%clk 0:00:03]} 41. Bxc6 {[%clk 0:00:09]}  bxc6 {[%clk 0:00:04]} 42. Nf3 {[%clk 0:00:10]}  Re8 {[%clk 0:00:04]} 43. Kg2 {[%clk 0:00:09]}  Re3 {[%clk 0:00:04]} 44. Rh1 {[%clk 0:00:09]}  Qf5 {[%clk 0:00:04]} 45. Re1 {[%clk 0:00:07]}  Qg4+ {[%clk 0:00:05]} 46. Kh2 {[%clk 0:00:03]}  Rxf3 {[%clk 0:00:04]} 47. Qg2 {[%clk 0:00:03]}  Rg3 {[%clk 0:00:04]} 48. Qxc6 {[%clk 0:00:01]}  Qh3# {[%clk 0:00:02]} 0-1


[Site "https://www.chess.com"]

[Event "Titled Tuesday Blitz November 15 Early 2022"]
[White "Mladenovic, Stefan"]
[Black "Artemenko, Oleg"]
[WhiteFideId "942227"]
[BlackFideId "14201798"]
[WhiteElo "2658"]
[BlackElo "2841"]
[Result "1-0"]
[Round "05"]
[TimeControl "180+1"]
[Date "2022.11.16"]
[WhiteClock "0:00:31"]
[BlackClock "0:00:06"]

1. d4 {[%clk 0:03:00]}  e6 {[%clk 0:02:59]} 2. Nf3 {[%clk 0:03:01]}  Nf6 {[%clk 0:02:58]} 3. e3 {[%clk 0:03:02]}  b6 {[%clk 0:02:58]} 4. Bd3 {[%clk 0:03:02]}  Bb7 {[%clk 0:02:57]} 5. O-O {[%clk 0:03:03]}  Be7 {[%clk 0:02:56]} 6. c4 {[%clk 0:03:03]}  O-O {[%clk 0:02:54]} 7. Nc3 {[%clk 0:03:03]}  d5 {[%clk 0:02:52]} 8. cxd5 {[%clk 0:03:04]}  Nxd5 {[%clk 0:02:52]} 9. e4 {[%clk 0:03:04]}  Nxc3 {[%clk 0:02:52]} 10. bxc3 {[%clk 0:03:05]}  c5 {[%clk 0:02:51]} 11. Qe2 {[%clk 0:03:05]}  Nd7 {[%clk 0:02:49]} 12. Rd1 {[%clk 0:03:05]}  Nf6 {[%clk 0:02:46]} 13. a4 {[%clk 0:02:55]}  cxd4 {[%clk 0:02:40]} 14. cxd4 {[%clk 0:02:56]}  Rc8 {[%clk 0:02:37]} 15. Bb2 {[%clk 0:02:55]}  Bb4 {[%clk 0:02:35]} 16. d5 {[%clk 0:02:54]}  exd5 {[%clk 0:02:24]} 17. e5 {[%clk 0:02:55]}  Re8 {[%clk 0:02:23]} 18. Ng5 {[%clk 0:02:48]}  h6 {[%clk 0:02:09]} 19. Qf3 {[%clk 0:02:06]}  hxg5 {[%clk 0:01:56]} 20. exf6 {[%clk 0:02:05]}  Qd7 {[%clk 0:01:07]} 21. Bf5 {[%clk 0:01:33]}  Qd6 {[%clk 0:01:06]} 22. Bxc8 {[%clk 0:01:31]}  Rxc8 {[%clk 0:01:05]} 23. fxg7 {[%clk 0:01:30]}  Qh6 {[%clk 0:00:45]} 24. Rac1 {[%clk 0:01:23]}  Bd6 {[%clk 0:00:45]} 25. Rxc8+ {[%clk 0:01:17]}  Bxc8 {[%clk 0:00:45]} 26. h3 {[%clk 0:01:10]}  Be6 {[%clk 0:00:44]} 27. Rxd5 {[%clk 0:01:02]}  Be7 {[%clk 0:00:35]} 28. Rd7 {[%clk 0:00:38]}  Kh7 {[%clk 0:00:12]} 29. Rxe7 {[%clk 0:00:36]}  g4 {[%clk 0:00:11]} 30. Qe4+ {[%clk 0:00:32]}  f5 {[%clk 0:00:09]} 31. Qxe6 {[%clk 0:00:31]}  Qxe6 {[%clk 0:00:08]} 32. Rxe6 {[%clk 0:00:31]}  gxh3 {[%clk 0:00:09]} 33. Re8 {[%clk 0:00:30]}  f4 {[%clk 0:00:10]} 34. g8=Q+ {[%clk 0:00:30]}  Kh6 {[%clk 0:00:08]} 35. Re6+ {[%clk 0:00:29]}  Kh5 {[%clk 0:00:09]} 36. Qg6+ {[%clk 0:00:30]}  Kh4 {[%clk 0:00:06]} 37. g3+ {[%clk 0:00:30]}  fxg3 {[%clk 0:00:06]} 38. fxg3# {[%clk 0:00:31]} 1-0


[Site "https://www.chess.com"]